[Event "FIDE WYCC Girls U14 2023"]
[Site "Montesilvano"]
[Date "2023.11.13"]
[Round "1.1"]
[White "Suyamin, Bonjoure Fille"]
[Black "Mou, Iris"]
[Result "0-1"]
[ECO "A22"]
[WhiteElo "1570"]
[BlackElo "2086"]
[Annotator "NA"]
[PlyCount "76"]
[EventDate "2023.11.13"]
[EventType "swiss"]
[EventCountry "ITA"]
[SourceTitle "playchess.com"]
[Source "ChessBase"]
[SourceQuality "1"]
[TimeControl "40/5400+30:1800+30"]

1. c4 {[%emt 0:00:04]} e5 {[%emt 0:00:14]} 2. Nc3 {[%emt 0:00:19]} Nf6 {[%emt 0:02:01]} 3. g3 {[%emt 0:01:55]} d5 {[%emt 0:00:22]} 4. cxd5 {[%emt 0:01:34]} Nxd5 {[%emt 0:00:08]} 5. Bg2 {[%emt 0:01:17]} Nb6 {[%emt 0:00:13]} 6. Nf3 {[%emt 0:01:37]} Nc6 {[%emt 0:00:23]} 7. O-O {[%emt 0:02:36]} Be7 {[%emt 0:00:16]} 8. b3 {[%emt 0:00:32]} O-O {[%emt 0:02:19]} 9. Bb2 {[%emt 0:01:45]} Re8 {[%emt 0:05:39]} 10. d3 {[%emt 0:13:53]} Bf8 {[%emt 0:04:13]} 11. Rc1 {[%emt 0:02:58]} a5 {[%emt 0:05:40]} 12. Ne4 {[%emt 0:10:28]} Nd4 {[%emt 0:10:14]} 13. Nc5 {[%emt 0:04:55]} c6 {[%emt 0:03:39]} 14. e3 {[%emt 0:08:28]} Nxf3+ {[%emt 0:03:42]} 15. Qxf3 {[%emt 0:01:05]} a4 {[%emt 0:08:29]} 16. Rfd1 {[%emt 0:10:50]} axb3 {[%emt 0:09:24]} 17. axb3 {[%emt 0:00:44]} Ra2 {[%emt 0:03:08]} 18. Rd2 {[%emt 0:04:22]} Nd5 {[%emt 0:04:22]} 19. Qd1 {[%emt 0:05:05]} Qa5 {[%emt 0:03:35]} 20. Bxd5 {[%emt 0:07:56]} cxd5 {[%emt 0:01:32]} 21. Rdc2 {[%emt 0:00:21]} Qb5 {[%emt 0:09:55]} 22. Qd2 {[%emt 0:16:05]} Rxb2 {[%emt 0:01:21]} 23. Rxb2 {[%emt 0:00:14]} Bxc5 {[%emt 0:00:06]} 24. Rbc2 {[%emt 0:00:56]} Bb4 {[%emt 0:02:25]} 25. Qd1 {[%emt 0:00:20]} Bf5 {[%emt 0:01:27]} 26. Rc7 {[%emt 0:00:52]} Ba3 {[%emt 0:01:23]} 27. Ra1 {[%emt 0:01:18]} Bd6 {[%emt 0:02:01]} 28. Rc3 {[%emt 0:00:32]} d4 {[%emt 0:02:54]} 29. Rcc1 {[%emt 0:01:05]} Bxd3 {[%emt 0:02:13]} 30. Ra2 {[%emt 0:00:43]} Bb4 {[%emt 0:02:55]} 31. Rc7 {[%emt 0:00:26]} Ba5 {[%emt 0:01:55]} 32. Rc1 {[%emt 0:00:40]} Bc3 {[%emt 0:00:19]} 33. Qg4 {[%emt 0:00:34]} Qxb3 {[%emt 0:00:44]} 34. Ra7 {[%emt 0:00:19]} Ba6 {[%emt 0:01:05]} 35. Qd7 {[%emt 0:00:33]} Rf8 {[%emt 0:00:10]} 36. Qc7 {[%emt 0:00:35]} Qb2 {[%emt 0:00:08]} 37. Rd1 {[%emt 0:00:27]} Qe2 {[%emt 0:00:50]} 38. Rb1 {[%emt 0:00:22]} dxe3 {[%emt 0:00:19]} 0-1

[Event "FIDE WYCC Girls U14 2023"]
[Site "Montesilvano"]
[Date "2023.11.13"]
[Round "1.2"]
[White "Piddubna, Bozhena"]
[Black "Chasouraki, Chrysi"]
[Result "1/2-1/2"]
[ECO "E16"]
[WhiteElo "2081"]
[BlackElo "1559"]
[Annotator "NA"]
[PlyCount "91"]
[EventDate "2023.11.13"]
[EventType "swiss"]
[EventCountry "ITA"]
[SourceTitle "playchess.com"]
[Source "ChessBase"]
[SourceQuality "1"]
[TimeControl "40/5400+30:1800+30"]

1. d4 {[%emt 0:00:12]} Nf6 {[%emt 0:00:11]} 2. c4 {[%emt 0:00:07]} e6 {[%emt 0:00:03]} 3. Nf3 {[%emt 0:00:07]} Bb4+ {[%emt 0:00:04]} 4. Bd2 {[%emt 0:00:07]} Qe7 {[%emt 0:00:05]} 5. g3 {[%emt 0:00:06]} Nc6 {[%emt 0:00:09]} 6. Nc3 {[%emt 0:00:10]} Bxc3 {[%emt 0:01:03]} 7. Bxc3 {[%emt 0:00:07]} Ne4 {[%emt 0:00:03]} 8. Rc1 {[%emt 0:00:06]} Nxc3 {[%emt 0:00:50]} 9. Rxc3 {[%emt 0:00:36]} d6 {[%emt 0:00:21]} 10. d5 {[%emt 0:08:02]} Nb8 {[%emt 0:03:26]} 11. Bg2 {[%emt 0:01:34]} e5 {[%emt 0:00:52]} 12. O-O {[%emt 0:02:10]} O-O {[%emt 0:03:44]} 13. b4 {[%emt 0:00:32]} Nd7 {[%emt 0:01:07]} 14. Qc2 {[%emt 0:10:27]} Nf6 {[%emt 0:12:54]} 15. Rd1 {[%emt 0:05:46]} a5 {[%emt 0:08:07]} 16. a3 {[%emt 0:05:19]} Bd7 {[%emt 0:02:23]} 17. Qb2 {[%emt 0:02:12]} axb4 {[%emt 0:15:50]} 18. axb4 {[%emt 0:00:15]} Ra4 {[%emt 0:09:04]} 19. Ra3 {[%emt 0:00:53]} Rfa8 {[%emt 0:00:26]} 20. Rda1 {[%emt 0:00:18]} b5 {[%emt 0:03:33]} 21. cxb5 {[%emt 0:26:27]} Rxa3 {[%emt 0:05:13]} 22. Rxa3 {[%emt 0:00:08]} Rxa3 {[%emt 0:00:12]} 23. Qxa3 {[%emt 0:00:04]} Bxb5 {[%emt 0:00:15]} 24. e3 {[%emt 0:07:30]} g6 {[%emt 0:09:18]} 25. Nd2 {[%emt 0:02:53]} e4 {[%emt 0:09:40]} 26. Qa8+ {[%emt 0:05:52]} Kg7 {[%emt 0:00:36]} 27. Qa1 {[%emt 0:00:06]} Bd3 {[%emt 0:00:46]} 28. Bf1 {[%emt 0:09:04]} Bxf1 {[%emt 0:02:55]} 29. Kxf1 {[%emt 0:00:08]} Qe5 {[%emt 0:00:48]} 30. Qxe5 {[%emt 0:00:21]} dxe5 {[%emt 0:00:05]} 31. b5 {[%emt 0:00:24]} Kf8 {[%emt 0:01:13]} 32. Nc4 {[%emt 0:02:50]} Nxd5 {[%emt 0:00:58]} 33. Nxe5 {[%emt 0:00:06]} f6 {[%emt 0:00:38]} 34. Nc4 {[%emt 0:00:31]} Nb6 {[%emt 0:00:55]} 35. Nd2 {[%emt 0:01:07]} f5 {[%emt 0:00:16]} 36. g4 {[%emt 0:02:07]} Ke7 {[%emt 0:00:35]} 37. gxf5 {[%emt 0:00:07]} gxf5 {[%emt 0:00:05]} 38. f3 {[%emt 0:00:03]} exf3 {[%emt 0:01:04]} 39. Nxf3 {[%emt 0:00:05]} Nd5 {[%emt 0:04:10]} 40. Kf2 {[%emt 0:00:00]} Nc3 {[%emt 0:00:00]} 41. Nd4 {[%emt 0:01:00]} Ne4+ {[%emt 0:03:19]} 42. Kf3 {[%emt 0:02:46]} Nd6 {[%emt 0:02:08]} 43. Kg3 {[%emt 0:01:36]} Kf7 {[%emt 0:02:20]} 44. Kf3 {[%emt 0:02:05]} Ke7 {[%emt 0:00:36]} 45. Kg3 {[%emt 0:00:31]} Kf7 {[%emt 0:00:08]} 46. Kf3 {[%emt 0:00:41]} 1/2-1/2

[Event "FIDE WYCC Girls U14 2023"]
[Site "Montesilvano"]
[Date "2023.11.13"]
[Round "1.3"]
[White "Balazs, Szabina Zoe"]
[Black "Mgeladze, Kesaria"]
[Result "1-0"]
[ECO "B51"]
[WhiteElo "1552"]
[BlackElo "2065"]
[Annotator "NA"]
[PlyCount "64"]
[EventDate "2023.11.13"]
[EventType "swiss"]
[EventCountry "ITA"]
[SourceTitle "playchess.com"]
[Source "ChessBase"]
[SourceQuality "1"]
[TimeControl "40/5400+30:1800+30"]

1. e4 {[%emt 0:00:01]} c5 {[%emt 0:03:34]} 2. Nf3 {[%emt 0:00:14]} d6 {[%emt 0:00:10]} 3. Bb5+ {[%emt 0:00:31]} Nc6 {[%emt 0:00:27]} 4. c3 {[%emt 0:00:20]} Nf6 {[%emt 0:01:00]} 5. Qe2 {[%emt 0:00:52]} Bg4 {[%emt 0:03:35]} 6. d4 {[%emt 0:04:12]} Bxf3 {[%emt 0:01:09]} 7. Qxf3 {[%emt 0:01:27]} Qb6 {[%emt 0:00:17]} 8. Bxc6+ {[%emt 0:03:45]} Qxc6 {[%emt 0:00:10]} 9. Nd2 {[%emt 0:01:05]} g6 {[%emt 0:00:35]} 10. O-O {[%emt 0:00:58]} Bg7 {[%emt 0:00:11]} 11. Re1 {[%emt 0:00:57]} O-O {[%emt 0:01:00]} 12. Nb3 {[%emt 0:01:23]} Nd7 {[%emt 0:07:14]} 13. Qg3 {[%emt 0:04:42]} a5 {[%emt 0:09:02]} 14. Be3 {[%emt 0:05:15]} a4 {[%emt 0:00:42]} 15. Nd2 {[%emt 0:00:19]} Qb6 {[%emt 0:11:13]} 16. dxc5 {[%emt 0:01:19]} Nxc5 {[%emt 0:00:51]} 17. Rab1 {[%emt 0:00:26]} Qc6 {[%emt 0:06:22]} 18. Qh4 {[%emt 0:11:15]} Nd3 {[%emt 0:03:59]} 19. Re2 {[%emt 0:00:21]} Rfe8 {[%emt 0:09:56]} 20. Bh6 {[%emt 0:04:26]} a3 {[%emt 0:16:39]} 21. bxa3 {[%emt 0:09:24]} Rxa3 {[%emt 0:01:31]} 22. Re3 {[%emt 0:07:54]} Rxc3 {[%emt 0:03:05]} 23. Nf1 {[%emt 0:06:11]} Bd4 {[%emt 0:06:50]} 24. Rf3 {[%emt 0:01:34]} Ne5 {[%emt 0:01:02]} 25. Rxc3 {[%emt 0:01:14]} Bxc3 {[%emt 0:02:11]} 26. Ne3 {[%emt 0:07:13]} Bd4 {[%emt 0:02:14]} 27. Nd5 {[%emt 0:01:44]} f6 {[%emt 0:03:06]} 28. Rc1 {[%emt 0:03:47]} Bc5 {[%emt 0:00:19]} 29. Rc3 {[%emt 0:05:40]} Qa4 {[%emt 0:01:56]} 30. Rc1 {[%emt 0:02:31]} Nd3 {[%emt 0:01:20]} 31. Rf1 {[%emt 0:05:14]} Nxf2 {[%emt 0:00:19]} 32. Be3 {[%emt 0:00:34]} Qxe4 {[%emt 0:01:28]} 1-0

[Event "FIDE WYCC Girls U14 2023"]
[Site "Montesilvano"]
[Date "2023.11.13"]
[Round "1.4"]
[White "Lyutsinger, Iren"]
[Black "Manco, Amaliya"]
[Result "1-0"]
[ECO "C27"]
[WhiteElo "2020"]
[BlackElo "1538"]
[Annotator "NA"]
[PlyCount "69"]
[EventDate "2023.11.13"]
[EventType "swiss"]
[EventCountry "ITA"]
[SourceTitle "playchess.com"]
[Source "ChessBase"]
[SourceQuality "1"]
[TimeControl "40/5400+30:1800+30"]

1. e4 {[%emt 0:00:02]} e5 {[%emt 0:00:07]} 2. Nc3 {[%emt 0:00:06]} Nf6 {[%emt 0:00:08]} 3. Bc4 {[%emt 0:00:05]} Nxe4 {[%emt 0:01:37]} 4. Qh5 {[%emt 0:00:22]} Nd6 {[%emt 0:03:52]} 5. Qxe5+ {[%emt 0:00:09]} Qe7 {[%emt 0:01:02]} 6. Qxe7+ {[%emt 0:00:10]} Bxe7 {[%emt 0:00:21]} 7. Bb3 {[%emt 0:00:05]} c6 {[%emt 0:02:03]} 8. Nf3 {[%emt 0:01:53]} O-O {[%emt 0:02:22]} 9. d4 {[%emt 0:01:26]} Na6 {[%emt 0:02:48]} 10. Bf4 {[%emt 0:01:41]} Nc7 {[%emt 0:06:33]} 11. O-O-O {[%emt 0:02:32]} b5 {[%emt 0:04:22]} 12. Rhe1 {[%emt 0:10:05]} Ne6 {[%emt 0:04:55]} 13. Be5 {[%emt 0:02:49]} f6 {[%emt 0:06:10]} 14. Bg3 {[%emt 0:06:02]} Nf5 {[%emt 0:04:26]} 15. d5 {[%emt 0:02:09]} Nc5 {[%emt 0:04:23]} 16. d6+ {[%emt 0:05:38]} Nxb3+ {[%emt 0:00:25]} 17. axb3 {[%emt 0:00:15]} Bd8 {[%emt 0:01:07]} 18. Bf4 {[%emt 0:00:35]} g5 {[%emt 0:03:09]} 19. Be3 {[%emt 0:08:23]} Nxe3 {[%emt 0:02:44]} 20. fxe3 {[%emt 0:01:09]} Ba5 {[%emt 0:06:27]} 21. e4 {[%emt 0:02:49]} h6 {[%emt 0:05:00]} 22. Nd4 {[%emt 0:01:10]} Bb7 {[%emt 0:03:29]} 23. Nf5 {[%emt 0:01:23]} Kh7 {[%emt 0:01:52]} 24. g4 {[%emt 0:02:19]} Kg6 {[%emt 0:00:39]} 25. Re3 {[%emt 0:00:46]} Rae8 {[%emt 0:02:54]} 26. Ne7+ {[%emt 0:04:11]} Kh7 {[%emt 0:02:43]} 27. h4 {[%emt 0:03:58]} Bb4 {[%emt 0:06:36]} 28. Nf5 {[%emt 0:06:50]} Re5 {[%emt 0:05:07]} 29. Rh1 {[%emt 0:03:44]} Re6 {[%emt 0:05:44]} 30. hxg5 {[%emt 0:02:57]} fxg5 {[%emt 0:00:24]} 31. e5 {[%emt 0:00:52]} Rfe8 {[%emt 0:03:07]} 32. Ne4 {[%emt 0:05:02]} Rg6 {[%emt 0:02:53]} 33. Nf6+ {[%emt 0:01:11]} Rxf6 {[%emt 0:01:40]} 34. exf6 {[%emt 0:00:27]} Rxe3 {[%emt 0:02:04]} 35. f7 {[%emt 0:01:01]} 1-0

[Event "FIDE WYCC Girls U14 2023"]
[Site "Montesilvano"]
[Date "2023.11.13"]
[Round "1.5"]
[White "Zeng, Vera"]
[Black "Smietanska, Wiktoria"]
[Result "0-1"]
[ECO "E21"]
[WhiteElo "1528"]
[BlackElo "2009"]
[Annotator "NA"]
[PlyCount "64"]
[EventDate "2023.11.13"]
[EventType "swiss"]
[EventCountry "ITA"]
[SourceTitle "playchess.com"]
[Source "ChessBase"]
[SourceQuality "1"]
[TimeControl "40/5400+30:1800+30"]

1. d4 {[%emt 0:00:03]} Nf6 {[%emt 0:00:07]} 2. c4 {[%emt 0:00:09]} e6 {[%emt 0:00:05]} 3. Nc3 {[%emt 0:00:11]} Bb4 {[%emt 0:00:12]} 4. Nf3 {[%emt 0:01:10]} O-O {[%emt 0:00:34]} 5. Qc2 {[%emt 0:01:31]} d5 {[%emt 0:06:16]} 6. Bg5 {[%emt 0:02:20]} h6 {[%emt 0:04:47]} 7. Bd2 {[%emt 0:04:15]} b6 {[%emt 0:10:27]} 8. cxd5 {[%emt 0:05:40]} exd5 {[%emt 0:01:29]} 9. e3 {[%emt 0:01:04]} Bb7 {[%emt 0:08:09]} 10. Bd3 {[%emt 0:01:59]} Nbd7 {[%emt 0:02:12]} 11. O-O {[%emt 0:01:12]} a6 {[%emt 0:04:17]} 12. Rfc1 {[%emt 0:02:15]} Bd6 {[%emt 0:01:51]} 13. a3 {[%emt 0:02:52]} c5 {[%emt 0:01:45]} 14. b3 {[%emt 0:06:36]} Rc8 {[%emt 0:02:10]} 15. dxc5 {[%emt 0:04:17]} bxc5 {[%emt 0:05:08]} 16. Be2 {[%emt 0:02:42]} Bb8 {[%emt 0:04:51]} 17. b4 {[%emt 0:05:56]} d4 {[%emt 0:07:08]} 18. Nb1 {[%emt 0:08:43]} cxb4 {[%emt 0:02:29]} 19. Qa4 {[%emt 0:01:20]} Rxc1+ {[%emt 0:00:53]} 20. Bxc1 {[%emt 0:00:18]} Bxf3 {[%emt 0:02:05]} 21. Bxf3 {[%emt 0:00:16]} Qc7 {[%emt 0:00:05]} 22. Bb2 {[%emt 0:01:25]} Qxh2+ {[%emt 0:00:26]} 23. Kf1 {[%emt 0:00:08]} Qh1+ {[%emt 0:02:40]} 24. Ke2 {[%emt 0:00:11]} d3+ {[%emt 0:00:49]} 25. Kd2 {[%emt 0:00:38]} Qg1 {[%emt 0:04:07]} 26. Qxb4 {[%emt 0:01:24]} Qxf2+ {[%emt 0:00:52]} 27. Kxd3 {[%emt 0:00:24]} a5 {[%emt 0:00:43]} 28. Qb5 {[%emt 0:01:18]} Ba7 {[%emt 0:06:02]} 29. Bc3 {[%emt 0:03:41]} Nc5+ {[%emt 0:00:31]} 30. Kd4 {[%emt 0:00:49]} Rd8+ {[%emt 0:00:22]} 31. Ke5 {[%emt 0:00:19]} Qxe3+ {[%emt 0:00:08]} 32. Kf5 {[%emt 0:00:16]} Qg5# {[%emt 0:00:06]} 0-1

[Event "FIDE WYCC Girls U14 2023"]
[Site "Montesilvano"]
[Date "2023.11.13"]
[Round "1.7"]
[White "Rice, Leah"]
[Black "Dicen, Elis Denele"]
[Result "0-1"]
[ECO "B13"]
[WhiteElo "1499"]
[BlackElo "1976"]
[Annotator "NA"]
[PlyCount "62"]
[EventDate "2023.11.13"]
[EventType "swiss"]
[EventCountry "ITA"]
[SourceTitle "playchess.com"]
[Source "ChessBase"]
[SourceQuality "1"]
[TimeControl "40/5400+30:1800+30"]

1. e4 {[%emt 0:00:03]} c6 {[%emt 0:00:19]} 2. d4 {[%emt 0:00:09]} d5 {[%emt 0:00:08]} 3. exd5 {[%emt 0:00:07]} cxd5 {[%emt 0:00:10]} 4. Bd3 {[%emt 0:00:07]} Nc6 {[%emt 0:00:27]} 5. c3 {[%emt 0:00:37]} Qc7 {[%emt 0:00:53]} 6. Qb3 {[%emt 0:01:16]} Nxd4 {[%emt 0:06:53]} 7. Qxd5 {[%emt 0:04:11]} Nc6 {[%emt 0:00:58]} 8. Na3 {[%emt 0:07:34]} Nf6 {[%emt 0:03:02]} 9. Qc4 {[%emt 0:02:20]} a6 {[%emt 0:04:20]} 10. Nf3 {[%emt 0:08:54]} e5 {[%emt 0:05:06]} 11. Be4 {[%emt 0:03:18]} Be6 {[%emt 0:06:23]} 12. Bxc6+ {[%emt 0:03:21]} bxc6 {[%emt 0:00:25]} 13. Qe2 {[%emt 0:00:36]} Bxa3 {[%emt 0:10:12]} 14. bxa3 {[%emt 0:00:06]} Nd7 {[%emt 0:00:23]} 15. Ng5 {[%emt 0:05:39]} Bf5 {[%emt 0:04:58]} 16. g4 {[%emt 0:02:38]} Be6 {[%emt 0:09:21]} 17. Nxe6 {[%emt 0:00:31]} fxe6 {[%emt 0:00:10]} 18. Qc4 {[%emt 0:00:14]} Qd6 {[%emt 0:06:53]} 19. Be3 {[%emt 0:00:19]} Qd5 {[%emt 0:02:32]} 20. Qf1 {[%emt 0:01:04]} Nf6 {[%emt 0:02:09]} 21. f3 {[%emt 0:04:55]} O-O {[%emt 0:01:15]} 22. Qe2 {[%emt 0:05:39]} Nxg4 {[%emt 0:03:11]} 23. Rf1 {[%emt 0:05:17]} Nxe3 {[%emt 0:01:27]} 24. Qxe3 {[%emt 0:00:10]} Rad8 {[%emt 0:00:16]} 25. Rf2 {[%emt 0:09:36]} Qc4 {[%emt 0:07:50]} 26. Rd1 {[%emt 0:03:38]} Rxd1+ {[%emt 0:03:33]} 27. Kxd1 {[%emt 0:00:06]} Rb8 {[%emt 0:00:58]} 28. Re2 {[%emt 0:02:47]} Rb1+ {[%emt 0:00:27]} 29. Kc2 {[%emt 0:00:19]} Qxa2+ {[%emt 0:00:11]} 30. Kd3 {[%emt 0:00:03]} Qd5+ {[%emt 0:00:25]} 31. Kc2 {[%emt 0:00:03]} Qd1# {[%emt 0:00:08]} 0-1

[Event "FIDE WYCC Girls U14 2023"]
[Site "Montesilvano"]
[Date "2023.11.13"]
[Round "1.8"]
[White "Kaliakhmet, Elnaz"]
[Black "Pereira Garza, Cecilia"]
[Result "1-0"]
[ECO "D45"]
[WhiteElo "1933"]
[BlackElo "1479"]
[Annotator "NA"]
[PlyCount "87"]
[EventDate "2023.11.13"]
[EventType "swiss"]
[EventCountry "ITA"]
[SourceTitle "playchess.com"]
[Source "ChessBase"]
[SourceQuality "1"]
[TimeControl "40/5400+30:1800+30"]

1. d4 {[%emt 0:00:05]} d5 {[%emt 0:00:08]} 2. c4 {[%emt 0:00:06]} c6 {[%emt 0:00:08]} 3. Nf3 {[%emt 0:00:24]} Nf6 {[%emt 0:00:13]} 4. Nc3 {[%emt 0:00:31]} Nbd7 {[%emt 0:00:33]} 5. e3 {[%emt 0:01:31]} e6 {[%emt 0:00:15]} 6. Qc2 {[%emt 0:00:10]} Bd6 {[%emt 0:01:40]} 7. Bd3 {[%emt 0:00:15]} O-O {[%emt 0:02:15]} 8. O-O {[%emt 0:00:35]} Re8 {[%emt 0:02:11]} 9. e4 {[%emt 0:00:30]} dxe4 {[%emt 0:01:20]} 10. Nxe4 {[%emt 0:00:04]} Nxe4 {[%emt 0:00:29]} 11. Bxe4 {[%emt 0:00:02]} Nf6 {[%emt 0:00:38]} 12. Bd3 {[%emt 0:02:25]} c5 {[%emt 0:06:46]} 13. dxc5 {[%emt 0:12:11]} Bxc5 {[%emt 0:01:21]} 14. Bg5 {[%emt 0:00:13]} h6 {[%emt 0:01:01]} 15. Bh4 {[%emt 0:00:06]} e5 {[%emt 0:15:03]} 16. Rfe1 {[%emt 0:04:46]} Qd6 {[%emt 0:02:39]} 17. Rad1 {[%emt 0:03:45]} Bd4 {[%emt 0:03:29]} 18. Bxf6 {[%emt 0:01:03]} Qxf6 {[%emt 0:00:46]} 19. Nxd4 {[%emt 0:00:17]} Bg4 {[%emt 0:01:31]} 20. Be2 {[%emt 0:01:31]} exd4 {[%emt 0:02:27]} 21. Bxg4 {[%emt 0:00:05]} Rxe1+ {[%emt 0:01:15]} 22. Rxe1 {[%emt 0:00:02]} Rd8 {[%emt 0:00:11]} 23. Qd3 {[%emt 0:00:58]} Qb6 {[%emt 0:01:23]} 24. Re2 {[%emt 0:01:06]} Qa5 {[%emt 0:01:31]} 25. a3 {[%emt 0:00:22]} Qg5 {[%emt 0:00:25]} 26. h3 {[%emt 0:01:06]} a6 {[%emt 0:04:14]} 27. Bf3 {[%emt 0:03:37]} b5 {[%emt 0:03:02]} 28. cxb5 {[%emt 0:00:33]} axb5 {[%emt 0:00:25]} 29. g3 {[%emt 0:00:20]} Qc5 {[%emt 0:05:34]} 30. Rc2 {[%emt 0:00:29]} Qe5 {[%emt 0:00:49]} 31. b4 {[%emt 0:00:12]} Qe6 {[%emt 0:06:49]} 32. Kg2 {[%emt 0:00:57]} g6 {[%emt 0:01:40]} 33. Qxb5 {[%emt 0:02:34]} Qb3 {[%emt 0:00:49]} 34. Qb6 {[%emt 0:02:25]} Rd7 {[%emt 0:02:41]} 35. Qb8+ {[%emt 0:00:30]} Kh7 {[%emt 0:00:48]} 36. Rc8 {[%emt 0:00:09]} Qe6 {[%emt 0:08:11]} 37. Rh8+ {[%emt 0:02:14]} Kg7 {[%emt 0:00:22]} 38. Qf8+ {[%emt 0:00:32]} Kf6 {[%emt 0:00:39]} 39. Rxh6 {[%emt 0:00:35]} d3 {[%emt 0:00:47]} 40. Rh4 {[%emt 0:00:00]} Qa6 {[%emt 0:00:00]} 41. Rf4+ Ke5 {[%emt 0:07:48]} 42. Re4+ {[%emt 0:01:26]} Kf5 {[%emt 0:04:33]} 43. Qc5+ {[%emt 0:00:58]} Kf6 {[%emt 0:00:53]} 44. Qe5# {[%emt 0:00:03]} 1-0

[Event "FIDE WYCC Girls U14 2023"]
[Site "Montesilvano"]
[Date "2023.11.13"]
[Round "1.9"]
[White "Mohd Afif, Ainul Mardhiah"]
[Black "Kirtadze, Anastasia"]
[Result "0-1"]
[ECO "A30"]
[WhiteElo "1478"]
[BlackElo "1921"]
[Annotator "NA"]
[PlyCount "108"]
[EventDate "2023.11.13"]
[EventType "swiss"]
[EventCountry "ITA"]
[SourceTitle "playchess.com"]
[Source "ChessBase"]
[SourceQuality "1"]
[TimeControl "40/5400+30:1800+30"]

1. c4 {[%emt 0:00:03]} c5 {[%emt 0:00:03]} 2. g3 {[%emt 0:00:07]} Nc6 {[%emt 0:00:23]} 3. Bg2 {[%emt 0:00:34]} g6 {[%emt 0:00:14]} 4. Nf3 {[%emt 0:01:16]} Bg7 {[%emt 0:00:11]} 5. O-O {[%emt 0:00:49]} e6 {[%emt 0:00:50]} 6. e3 {[%emt 0:04:43]} Nge7 {[%emt 0:00:31]} 7. d4 {[%emt 0:01:15]} cxd4 {[%emt 0:00:17]} 8. exd4 {[%emt 0:00:37]} d5 {[%emt 0:00:03]} 9. cxd5 {[%emt 0:01:55]} exd5 {[%emt 0:03:44]} 10. Re1 {[%emt 0:08:18]} h6 {[%emt 0:02:25]} 11. Nc3 {[%emt 0:01:49]} O-O {[%emt 0:00:38]} 12. h3 {[%emt 0:03:10]} Nf5 {[%emt 0:07:39]} 13. Be3 {[%emt 0:12:56]} Be6 {[%emt 0:01:10]} 14. Qd2 {[%emt 0:19:43]} Kh7 {[%emt 0:07:53]} 15. h4 {[%emt 0:08:28]} Qd7 {[%emt 0:03:10]} 16. Rad1 {[%emt 0:04:35]} Rad8 {[%emt 0:07:41]} 17. Ne2 {[%emt 0:07:50]} Nxe3 {[%emt 0:02:55]} 18. Qxe3 {[%emt 0:02:41]} Bg4 {[%emt 0:00:42]} 19. Qc3 {[%emt 0:02:37]} Rfe8 {[%emt 0:00:27]} 20. Kh2 {[%emt 0:02:11]} Re7 {[%emt 0:02:51]} 21. Neg1 {[%emt 0:02:25]} Rde8 {[%emt 0:04:07]} 22. Rxe7 {[%emt 0:01:14]} Rxe7 {[%emt 0:01:37]} 23. Bh3 {[%emt 0:00:42]} Re4 {[%emt 0:01:24]} 24. Rd3 {[%emt 0:03:19]} Qf5 {[%emt 0:02:06]} 25. Qd2 {[%emt 0:02:22]} a5 {[%emt 0:10:26]} 26. a3 {[%emt 0:00:51]} a4 {[%emt 0:00:26]} 27. Bxg4 {[%emt 0:04:58]} Qxg4 {[%emt 0:00:15]} 28. Ne2 {[%emt 0:01:11]} b5 {[%emt 0:10:00]} 29. Nc3 {[%emt 0:01:32]} Nxd4 {[%emt 0:00:23]} 30. Nxd4 {[%emt 0:00:16]} Rxd4 {[%emt 0:00:03]} 31. Nxd5 {[%emt 0:00:38]} Qe4 {[%emt 0:10:44]} 32. Rxd4 {[%emt 0:00:30]} Qxd4 {[%emt 0:01:26]} 33. Qxd4 {[%emt 0:00:15]} Bxd4 {[%emt 0:00:03]} 34. Nc3 {[%emt 0:00:13]} Bxc3 {[%emt 0:01:35]} 35. bxc3 {[%emt 0:00:04]} Kg7 {[%emt 0:00:05]} 36. Kg2 {[%emt 0:00:11]} Kf6 {[%emt 0:00:03]} 37. Kf3 {[%emt 0:00:05]} Ke5 {[%emt 0:00:05]} 38. Ke3 {[%emt 0:00:10]} Kd5 {[%emt 0:02:16]} 39. Kd3 {[%emt 0:00:08]} Kc5 {[%emt 0:05:01]} 40. f3 {[%emt 0:00:00]} Kd5 {[%emt 0:00:00]} 41. g4 {[%emt 0:13:32]} g5 {[%emt 0:12:30]} 42. hxg5 {[%emt 0:00:47]} hxg5 {[%emt 0:00:05]} 43. Kd2 {[%emt 0:01:27]} Kc4 {[%emt 0:00:19]} 44. Kc2 {[%emt 0:03:20]} f6 {[%emt 0:00:11]} 45. Kd2 {[%emt 0:01:23]} Kb3 {[%emt 0:00:13]} 46. Kd3 {[%emt 0:00:32]} Kxa3 {[%emt 0:00:04]} 47. c4 {[%emt 0:01:25]} bxc4+ {[%emt 0:00:10]} 48. Kc3 {[%emt 0:00:48]} Ka2 {[%emt 0:00:22]} 49. Kc2 {[%emt 0:00:06]} a3 {[%emt 0:00:05]} 50. Kc1 {[%emt 0:01:25]} Kb3 {[%emt 0:00:13]} 51. Kb1 {[%emt 0:00:14]} c3 {[%emt 0:00:16]} 52. f4 {[%emt 0:00:41]} a2+ {[%emt 0:00:06]} 53. Ka1 {[%emt 0:00:05]} c2 {[%emt 0:00:23]} 54. f5 {[%emt 0:00:08]} c1=Q# {[%emt 0:00:15]} 0-1